Cogmind - Beta 16 @@@ ROGUE MODE // 2025.12.19 @ 16:47:19 Player: Anting Result: Destroyed by G-47 Trooper with Particle Gun Performance ------------- Evolutions (1) 500 Regions Visited (5) 1000 Robots Destroyed (87) 435 Value Destroyed (1562) 1562 Prototype IDs (33) 660 Alien Tech Used (0) 0 Bonus (308) 308 TOTAL SCORE: 4465 Bonus ------- High Alert Combat Kills 8 Aligned with FarCom 300 Cogmind --------- Core Integrity 0/400 Matter 124/300 Energy 100/100 System Corruption 0% Temperature Cool (9) Movement Treading (200) Ox1 Location -8/Mines Parts ------- > --- POWER (1) -------- (None) > --- PROPULSION (3) --- Light Treads Light Treads > --- UTILITY (3) ------ Experimental Heat Sink High-capacity Storage Unit Advanced Component Analysis Suite > --- WEAPON (2) ------- 8R-AWN's Boregun > --- INVENTORY (20) --- Makeshift Power Source Improved Hover Unit Combat Antigrav System Medium Matter Pod (0) Structural Scanner Experimental Core Analyzer Improved Armor Integrity Analyzer Advanced Weapon Cycler Hacking Suite High-powered Shotgun AWS/Gauss Rocket Launcher Mini Grenade Launcher Peak State ------------ > --- POWER ------------ Reinforced Fission Core > --- PROPULSION ------- Light Treads Light Treads Light Treads > --- UTILITY ---------- Experimental Heat Sink High-capacity Storage Unit Advanced Component Analysis Suite > --- WEAPON ----------- Firepult > --- INVENTORY -------- Makeshift Power Source Light Treads Light Treads Light Treads Combat Antigrav System High-capacity Battery Experimental Core Analyzer Improved Armor Integrity Analyzer Advanced Weapon Cycler Hacking Suite YOLO Cannon AWS/Gauss 8R-AWN's Boregun Rocket Launcher Mini Grenade Launcher Deploy-a-Sentry [Rating: 55] Favorites ----------- Power Improved Ion Engine Engine Improved Ion Engine Power Core Reinforced Fission Core Propulsion Light Treads Treads Light Treads Leg Aluminum Leg Flight Unit Improved Flight Unit Utility Light Armor Plating Device Shield Generator Storage Large Storage Unit Protection Light Armor Plating Weapon Autogun Energy Cannon Firepult Ballistic Gun Autogun Launcher Mini Grenade Launcher Slashing Weapon Katana Build | -11 -10 -9 -9 -9 -8 ------- Run | Yrd Mat Mat Min Exi Min Slots Evolved 2 | . . 2 . . . Power . | . . . . . . Propulsion 1 | . . 1 . . . Utility 1 | . . 1 . . . Weapon . | . . . . . . Parts Attached 60 | 7 8 20 1 20 4 Power 4 | 1 . 2 . 1 . Engine 3 | 1 . 2 . . . Core 1 | . . . . 1 . Reactor . | . . . . . . Propulsion 23 | 2 2 10 . 7 2 Treads 17 | . . 9 . 6 2 Leg 5 | 2 2 . . 1 . Wheel . | . . . . . . Hover . | . . . . . . Flight 1 | . . 1 . . . Utility 17 | 2 2 5 1 7 . Device 8 | 1 1 1 1 4 . Storage 4 | 1 1 . . 2 . Processor . | . . . . . . Hackware . | . . . . . . Protection 5 | . . 4 . 1 . Artifact . | . . . . . . Weapon 16 | 2 4 3 . 5 2 Energy Gun . | . . . . . . Energy Cannon 2 | . . . . . 2 Ballistic Gun 10 | 2 3 2 . 3 . Ballistic Cannon . | . . . . . . Launcher 3 | . 1 1 . 1 . Special Weapon . | . . . . . . Impact Weapon . | . . . . . . Slashing Weapon 1 | . . . . 1 . Piercing Weapon . | . . . . . . Special Melee Weapon . | . . . . . . Unidentified Prototypes 5 | . . 1 1 3 . Parts Lost 28 | . 5 5 . 13 5 Power 4 | . 1 1 . 1 1 Propulsion 11 | . . 1 . 6 4 Utility 7 | . 1 2 . 4 . Weapon 6 | . 3 1 . 2 . Highest Loss Streak 10 | . 3 3 . 10 5 To Critical Strikes 8 | . . . . 8 . Average Backups 14 | 3 9 14 14 15 12 Power . | . 1 . . 1 1 Propulsion 5 | 1 2 6 7 5 1 Utility 3 | . 2 2 2 3 5 Weapon 4 | . 3 5 5 5 3 Tool/Special . | . . . . . . Unused Backups 34 | . 1 11 1 9 12 Power 6 | . . . . 5 1 Propulsion 6 | . . 4 . . 2 Utility 12 | . . 1 1 3 7 Weapon 10 | . 1 6 . 1 2 Tool/Special . | . . . . . . Average Slot Usage (%) 91 | . 94 90 100 92 71 Engine 7 | . 10 8 11 5 . Core 2 | . . . . 5 1 Treads 25 | . . 26 33 32 23 Leg 5 | . 28 5 . . . Device 9 | . 11 5 11 8 22 Storage 12 | . 14 11 11 13 11 Protection 6 | . . 11 11 5 . Ballistic Gun 19 | . 27 22 21 15 10 Slashing Weapon 2 | . . . . 5 1 Peak Build Rating 55 | 7 8 17 26 51 55 Average Rating 19 | 5 7 12 14 26 37 On Entrance 15 | . 7 7 15 15 49 Avg Prop Armor Cover (%) 12 | . . 12 . . . Naked Turns . | . . . . . . Heaviest Build 109 | 14 29 39 38 109 67 Greatest Support 60 | 20 20 60 60 60 60 Greatest Overweight (x) 3 | . 1 1 . 3 1 Average Overweight (x) . | . . . . . . Largest Inventory Capacity 25 | 8 15 15 15 25 20 Average Capacity 17 | 7 14 15 15 20 20 Most Carried 21 | 4 15 15 15 21 20 Average Carried 14 | 3 9 14 14 17 13 Final Capacity 20 | 8 15 15 15 20 20 Final Carried 20 | 4 15 15 15 20 14 Class Distribution -------------------- 63% | Mutant 36% | Scavenger-Mutant Dominant Class ---------------- Mutant | -10/Materials Scavenger-Mutant | -9/Materials Mutant | -9/Mines Mutant | -9/Exiles Mutant | -8/Mines Resources | -11 -10 -9 -9 -9 -8 ----------- Run | Yrd Mat Mat Min Exi Min Matter Collected 2840 | 265 327 1031 106 899 212 Remotely . | . . . . . . Salvage Created 2952 | 108 647 1436 67 562 132 Parts 233 | 12 45 96 10 62 8 Haulers Intercepted 5 | . 1 4 . . . Recyclers Shooed 3 | 1 . 2 . . . Parts Field Recycled . | . . . . . . Retrieved Matter . | . . . . . . Parts Self-Destructed . | . . . . . . Prevented . | . . . . . . Parts Restored . | . . . . . . Kills | -11 -10 -9 -9 -9 -8 ------- Run | Yrd Mat Mat Min Exi Min Combat Hostiles Destroyed 60 | . 21 27 6 5 1 Melee 2 | . . . . 1 1 Guns 47 | . 18 24 3 2 . AOE 11 | . 3 3 3 2 . Classes Destroyed 14 | 2 5 3 . 3 1 Worker 1 | . . 1 . . . Tunneler 4 | 3 1 . . . . Hauler 5 | . 1 4 . . . Recycler 6 | 1 . 5 . . . Operator 1 | . 1 . . . . Turret 1 | . . . . 1 . Watcher 3 | . 1 2 . . . Swarmer 29 | . 9 14 6 . . Grunt 16 | . 12 4 . . . Duelist 1 | . . 1 . . . Sentry 8 | . . 8 . . . Hunter 1 | . . . . . 1 Zionite 8 | . . . . 8 . Assembled 4 | . . . . 4 . Best Kill Streak 8 | 4 4 8 3 4 1 Combat Bots Only 8 | . 3 8 3 4 1 Max Kills in Single Turn 3 | 1 2 3 3 1 1 Gunslinging 1 | . . 1 . . . Exploded 3 | . 1 3 3 1 . Melee 1 | . . . . 1 1 Uniques/NPCs Destroyed 5 | . . . . 4 1 8R-AWN (-9/Exiles) EX-DEC (-9/Exiles) EX-BIN (-9/Exiles) EX-HEX (-9/Exiles) 99-TNT (-8/Mines) Combat | -11 -10 -9 -9 -9 -8 -------- Run | Yrd Mat Mat Min Exi Min Hostile Shots Fired 446 | . 111 111 17 135 72 Missed 91 | . 31 24 5 29 2 Hits 355 | . 80 87 12 106 70 Melee 10 | . . 6 . 4 . Projectile 345 | . 80 81 12 102 70 AOE 16 | . . . . . 16 Critical Strikes 47 | . 2 2 . 42 1 Damage Taken 4902 | . 867 1059 64 1617 1295 Core 624 | . 212 122 . 169 121 Absorbed by Shields 259 | . . 56 31 172 . Regen/Repaired (Parts) 106 | . . 106 . . . Core Remaining (%) 57 | 100 15 . . . . Volleys Fired 342 | 11 88 110 7 113 13 Largest 2 | 2 2 2 2 2 1 Hottest 250 | 40 40 46 46 46 250 Shots Fired 583 | 22 170 219 13 133 26 Gun 550 | 22 165 218 12 113 20 Cannon 6 | . . . . . 6 Launcher 27 | . 5 1 1 20 . Special . | . . . . . . Kinetic 550 | 22 165 218 12 113 20 Thermal 6 | . . . . . 6 Explosive 27 | . 5 1 1 20 . Electromagnetic . | . . . . . . Robot Hit Streak 34 | 2 8 23 6 34 4 Robot Miss Streak 6 | 2 4 4 2 6 4 Penetration Max 2 | . . . . 2 1 Secondary Targets 10 | . 3 6 1 . . Max Gunslinging Chain 1 | . 1 1 1 . . Autonomous 13 | . . . . . 13 Shots Hit Robots 359 | 11 91 138 8 90 21 Core Hits 170 | 6 47 60 5 43 9 Critical Kills 9 | . . 1 . 6 2 Critical Parts Destroyed 13 | . 2 . . 9 2 Critical Strikes 25 | . 2 1 . 18 4 Destroy 23 | . 2 1 . 16 4 Sever 2 | . . . . 2 . Melee Attacks 56 | . . . . 52 4 Impact . | . . . . . . Slashing 56 | . . . . 52 4 Piercing . | . . . . . . Sneak Attacks 4 | . . . . 4 . Combat Hostiles . | . . . . . . Follow-up Attacks . | . . . . . . Damage Inflicted 7022 | 116 1165 2166 220 2804 551 Guns 4544 | 116 866 2020 124 1194 224 Cannons 60 | . . . . . 60 Explosions 1117 | . 290 139 96 452 140 Melee 1285 | . . . . 1158 127 Ramming 16 | . 9 7 . . . Kinetic 4544 | 116 866 2020 124 1194 224 Thermal 200 | . . . . . 200 Explosive 906 | . 219 139 96 452 . Electromagnetic 71 | . 71 . . . . Impact . | . . . . . . Slashing 1285 | . . . . 1158 127 Piercing . | . . . . . . Highest Corruption 1 | . . . . 1 . Average Corruption 1 | . . . . 1 . Corruption Purged 1 | . . . . 1 . Corruption Blocked . | . . . . . . Effects 4 | . . . . 4 . Message Errors 1 | . . . . 1 . Matter Fused 1 | . . . . 1 . Energy Discharges 1 | . . . . 1 . Data Loss (major) 1 | . . . . 1 . Overload Shots . | . . . . . . Overflow Damage 157 | . 13 . 27 117 . Projectiles . | . . . . . . Explosions 69 | . 13 . 27 29 . Melee 88 | . . . . 88 . Knockbacks . | . . . . . . Impact . | . . . . . . Kinetic . | . . . . . . Secondary . | . . . . . . Self-Inflicted Damage 73 | . 61 12 . . . Shots 3 | . 2 1 . . . Rammed 2 | . . 2 . . . Targets Rammed 6 | . 4 2 . . . Kicked 4 | . 4 . . . . Crushed . | . . . . . . Highest Temperature 644 | . 18 50 16 16 644 Average Temperature 42 | . 6 14 7 8 319 Received Heat Transfer 525 | . 324 165 . . 36 Effects 5 | . . . . . 5 Energy Bleed 1 | . . . . . 1 Matter Decay 1 | . . . . . 1 Short Circuit 1 | . . . . . 1 Damage (major) 2 | . . . . . 2 Siege Activations . | . . . . . . Martial Activations . | . . . . . . Shielding Activations . | . . . . . . Robots Disrupted . | . . . . . . Combat Hostiles . | . . . . . . Robots Corrupted . | . . . . . . Combat Hostiles . | . . . . . . Parts Fried . | . . . . . . Impact Corruptions . | . . . . . . Robots Melted . | . . . . . . Combat Hostiles . | . . . . . . Parts Melted . | . . . . . . Heat Transferred 240 | . . . . . 240 Parts Sabotaged . | . . . . . . Parts Stolen . | . . . . . . Parts Stripped . | . . . . . . Power Chain Reactions . | . . . . . . Alert | -11 -10 -9 -9 -9 -8 ------- Run | Yrd Mat Mat Min Exi Min Maximum Alert Level 2 | . . 2 1 . . Low Security (%) 71 | 100 100 28 92 . 100 Level 1 27 | . . 70 7 . . Level 2 . | . . 1 . . . Level 3 . | . . . . . . Level 4 . | . . . . . . Level 5 . | . . . . . . High Security . | . . . . . . Max Security . | . . . . . . Peak Influence 402 | 15 177 402 232 . 20 Initial 153 | . . 70 153 . . Average 127 | 2 50 271 62 . 1 Influence Increases 1838 | 20 657 929 164 . 68 Destroy 0b10 Robot/C 1100 | . 420 540 120 . 20 Destroy 0b10 Robot/NC 115 | 20 20 60 . . 15 Destroy Leader 276 | . 104 142 20 . 10 Successful Hack 58 | . 16 42 . . . Select Force Hacks 90 | . 60 30 . . . Disable Machine 45 | . 15 30 . . . Destroy Structure 64 | . 22 10 9 . 23 Lose Combat Pursuer 90 | . . 75 15 . . Influence Decreases 1838 | 20 488 705 557 . 68 Entered New Map 339 | . . 99 240 . . Time Decay 1387 | 20 438 556 317 . 56 Lost Part 102 | . 50 40 . . 12 Lost Ally 10 | . . 10 . . . Squads Dispatched 7 | . 6 1 . . . Investigation 4 | . 3 1 . . . Extermination . | . . . . . . Reinforcement 3 | . 3 . . . . Assault . | . . . . . . Garrison . | . . . . . . Intercept . | . . . . . . Searches Triggered . | . . . . . . Construction Impeded . | . . . . . . Haulers Reinforced . | . . . . . . Active Scanning Responses . | . . . . . . Cargo Convoy Interrupts . | . . . . . . Stealth | -11 -10 -9 -9 -9 -8 --------- Run | Yrd Mat Mat Min Exi Min Distress Signals 7 | . 2 5 . . . Communications Jammed . | . . . . . . Distress Signals . | . . . . . . Times Spotted 104 | . 32 40 7 20 5 Peak Tracking Total 9 | . 4 7 4 9 3 Tactical Retreats 8 | . . 3 1 4 . Traps | -11 -10 -9 -9 -9 -8 ------- Run | Yrd Mat Mat Min Exi Min Traps Triggered 3 | . 1 2 . . . Indirectly . | . . . . . . Trap Hack Attempts . | . . . . . . Triggered . | . . . . . . Disarmed . | . . . . . . Reprogrammed . | . . . . . . Reused . | . . . . . . Traps Extracted . | . . . . . . Installed . | . . . . . . Triggered . | . . . . . . Machines | -11 -10 -9 -9 -9 -8 ---------- Run | Yrd Mat Mat Min Exi Min Machines Disabled 19 | . 1 2 . 16 . Max in Single Turn 2 | . 1 1 . 2 . Machines Repaired . | . . . . . . Machines Dismantled . | . . . . . . Machines Sabotaged . | . . . . . . Overloaded Fab Kills . | . . . . . . Hacking | -11 -10 -9 -9 -9 -8 --------- Run | Yrd Mat Mat Min Exi Min Machines Accessed 20 | . 6 11 1 2 . Terminals 11 | . 4 7 . . . Fabricators . | . . . . . . Repair Stations 2 | . . 2 . . . Recycling Units 3 | . 2 1 . . . Scanalyzers 1 | . . 1 . . . Garrison Access . | . . . . . . Total Hacks 57 | . 18 36 1 2 . Successful 40 | . 11 26 1 2 . Failed 17 | . 7 10 . . . Catastrophic 2 | . 1 1 . . . Database Lockouts . | . . . . . . Manual 46 | . 17 28 . 1 . Terminals 43 | . 16 27 . . . Fabricators . | . . . . . . Repair Stations 5 | . . 5 . . . Recycling Units 4 | . 2 2 . . . Scanalyzers 2 | . . 2 . . . Garrison Access . | . . . . . . Terminal Hacks 15 | . 4 8 1 2 . Record 1 | . . . . 1 . Robot Schematic 1 | . 1 . . . . Robot Analysis 3 | . . 3 . . . Prototype ID Bank 2 | . 1 1 . . . Open Door 1 | . . . 1 . . Branch Access Points 1 | . . 1 . . . Terminal Index 3 | . 2 1 . . . Locate Traps 1 | . . 1 . . . Zone Layout 1 | . . 1 . . . Proto ID Catalog 1 | . . . . 1 . Fabricator Hacks . | . . . . . . Repair Station Hacks 4 | . . 4 . . . Scan Component 2 | . . 2 . . . Repair 2 | . . 2 . . . Recycling Unit Hacks . | . . . . . . Scanalyzer 2 | . . 2 . . . Retrieve Study 2 | . . 2 . . . Garrison Access Hacks . | . . . . . . Unauthorized Hacks 19 | . 7 12 . . . Terminals 16 | . 5 11 . . . Assimilate 3 | . . 3 . . . Botnet 1 | . . 1 . . . Operators 2 | . 1 1 . . . Skim 10 | . 4 6 . . . Fabricators . | . . . . . . Repair Stations . | . . . . . . Recycling Units 3 | . 2 1 . . . Tunnel 3 | . 2 1 . . . Scanalyzers . | . . . . . . Garrison Access . | . . . . . . Data Cores Recovered . | . . . . . . Used . | . . . . . . Hacking Detections 12 | . 4 8 . . . Full Trace Events . | . . . . . . Feedback Events . | . . . . . . Feedback Blocked . | . . . . . . Robot Schematics Acquired 1 | . 1 . . . . Robots Built . | . . . . . . Authchips . | . . . . . . Time . | . . . . . . Total Robot Build Rating . | . . . . . . Part Schematics Acquired . | . . . . . . Parts Built . | . . . . . . Authchips . | . . . . . . Time . | . . . . . . Total Part Build Rating . | . . . . . . Part Studies Acquired 2 | . . 2 . . . Parts Repaired 2 | . . 2 . . . Time 58 | . . 58 . . . Parts Recycled . | . . . . . . Recycled Matter . | . . . . . . Retrieved Matter . | . . . . . . Retrieved Components . | . . . . . . Parts Scanalyzed . | . . . . . . Part Schematics Acquired . | . . . . . . Parts Damaged . | . . . . . . Bothacking | -11 -10 -9 -9 -9 -8 ------------ Run | Yrd Mat Mat Min Exi Min Used RIF Installer . | . . . . . . Robots Hacked . | . . . . . . Non-combat . | . . . . . . Combat . | . . . . . . Robot Hacks Applied . | . . . . . . Relay Couplers Released . | . . . . . . Fabnet Peak Effective % . | . . . . . . Robots Rewired . | . . . . . . Allies Hacked . | . . . . . . Hacks Repelled . | . . . . . . Allies | -11 -10 -9 -9 -9 -8 -------- Run | Yrd Mat Mat Min Exi Min Total Allies 1 | . . 1 . . . Largest Group 1 | . . 1 . . . Highest-Rated Group 10 | . . 10 . . . Highest-Rated Ally 10 | . . 10 . . . Total Orders . | . . . . . . Ally Attacks 7 | . . . . . 7 Total Damage 197 | . . . . . 197 Kills 1 | . . . . . 1 Allies Corrupted . | . . . . . . Allies Melted . | . . . . . . Turrets Deployed 1 | . . . . . 1 Intel | -11 -10 -9 -9 -9 -8 ------- Run | Yrd Mat Mat Min Exi Min Active Infowar (turns) 1413 | 26 1075 312 . . . Seismic 1413 | 26 1075 312 . . . Robot Analysis Total 3 | . . 3 . . . Derelict Logs Recovered 1 | . . . 1 . . Drone Launches . | . . . . . . Drone Recoveries . | . . . . . . Exploration | -11 -10 -9 -9 -9 -8 ------------- Run | Yrd Mat Mat Min Exi Min Turns Passed 8385 | 109 1274 1797 1039 3551 615 Spaces Moved 4042 | 59 488 866 632 1729 268 Core 9 | 9 . . . . . Treads 3333 | . . 704 632 1729 268 Legs 700 | 50 488 162 . . . Wheels . | . . . . . . Hover . | . . . . . . Flight . | . . . . . . Fastest Speed 50 | 50 120 120 160 160 160 Average Speed 171 | 109 187 153 160 177 199 Slowest Speed 280 | 120 190 200 160 280 200 Overloaded Moves . | . . . . . . Propulsion Burnouts . | . . . . . . Robots Hopped . | . . . . . . Potential Cave-ins . | . . . . . . Cave-ins Triggered . | . . . . . . Exploration Rate (%) 62 | 3 60 74 99 92 45 Regions Visited 5 Branch Regions 3 Pre-discovered Areas 9 | . 2 4 2 1 . Known Exits Taken 1 | . . 1 . . . Unknown Exits Taken 4 | 1 1 . 1 1 . Scrap Searched 2 | . . . 1 . 1 Spaces Dug . | . . . . . . Terrain Destroyed 131 | . 21 7 9 37 57 Melee . | . . . . . . Projectile 25 | . . . . 13 12 AOE 102 | . 21 7 9 20 45 Terrain Rammed . | . . . . . . Walls Destroyed . | . . . . . . Machines Disabled . | . . . . . . Actions | -11 -10 -9 -9 -9 -8 --------- Run | Yrd Mat Mat Min Exi Min Total 4950 | 80 696 1168 650 2025 331 Wait 276 | . 94 114 . 41 27 Move 4037 | 58 487 865 631 1728 268 Hop . | . . . . . . Pick Up 77 | 4 12 22 2 33 4 Fast Attach 30 | 7 2 11 3 7 . Attach 32 | . 2 6 . 17 7 Detach 7 | . . . . 6 1 Swap 22 | . 5 11 2 3 1 Drop 65 | . 2 27 5 25 6 Fire 342 | 11 88 110 7 113 13 Melee 56 | . . . . 52 4 Ram . | . . . . . . Kick 4 | . 4 . . . . Crush 2 | . . 2 . . . Escape Stasis . | . . . . . . Rewire . | . . . . . . Trap . | . . . . . . Miscellaneous . | . . . . . . Route ------- -11/Scrapyard -10/Materials -9/Materials (discovered 4 exits: *Mat x3 / *Min) -9/Mines (discovered 3 exits: *Mat x2 / *Exi) -9/Exiles -8/Mines History --------- Turn | Location | Event 4 | -11/Scrapyard | Discovered new exit (range 15) 110 | -11/Scrapyard | Entered Materials 301 | -10/Materials | Build established: Mutant 969 | -10/Materials | Discovered new exit (range 10) 1098 | -10/Materials | Core integrity fell below 50% 1115 | -10/Materials | Core integrity fell below 20% 1145 | -10/Materials | Lost 3 parts (1p1u1w) 1384 | -10/Materials | Entered another Materials area 1384 | -9/Materials | Evolved 2 slots: Propulsion x1, Utility x1 1542 | -9/Materials | Build established: Scavenger-Mutant 1649 | -9/Materials | Identified exit to Mines 1756 | -9/Materials | Destroyed 8 combat bots 1760 | -9/Materials | Lost 3 parts (1p1u1w) 1832 | -9/Materials | Discovered new exit (range 16) 2351 | -9/Materials | Repaired Lgt. Armor Plating 2354 | -9/Materials | Learned Storage security intel 2420 | -9/Materials | Loaded intel: 15 trap records 2476 | -9/Materials | Learned location of Zion (-7) 2524 | -9/Materials | Learned Storage stockpile data 2561 | -9/Materials | Identified exit to Materials 2670 | -9/Materials | Learned location of 1 exit from Recycling 2788 | -9/Materials | Build established: Mutant 2951 | -9/Materials | Repaired Lgt. EM Pulse Cannon 3181 | -9/Materials | Entered Mines 3472 | -9/Mines | Learned location of Storage (-7) 3630 | -9/Mines | Discovered exit to Materials (range 9) 3654 | -9/Mines | Found the Drone Emporium 3662 | -9/Mines | Found Prototype Device 3662 | -9/Mines | Identified Decoy Drone Bay 3747 | -9/Mines | Deemed a non-threat by the Exiles lab entrance 3823 | -9/Mines | Discovered exit to Materials (range 5) 4074 | -9/Mines | Discovered new exit (range 5) 4220 | -9/Mines | Entered Exiles 4260 | -9/Exiles | Met 8R-AWN 4286 | -9/Exiles | Met EX-HEX 4334 | -9/Exiles | Met EX-BIN 4356 | -9/Exiles | Met EX-DEC 4480 | -9/Exiles | Visited The Gauntlet 4780 | -9/Exiles | Discovered new exit (range 14) 5235 | -9/Exiles | Aligned with FarCom system 5237 | -9/Exiles | Given EX-Vault access code 5273 | -9/Exiles | Opened EX-Vault 5285 | -9/Exiles | Found AWS/Gauss 5287 | -9/Exiles | Found Firepult 5317 | -9/Exiles | Warned to stay clear of 0b10 Research branches 5553 | -9/Exiles | Found YOLO Cannon 5769 | -9/Exiles | Attacked by the Exiles 5981 | -9/Exiles | Core integrity fell below 50% 5990 | -9/Exiles | Lost 10 parts (1p3n4u2w) 6046 | -9/Exiles | Destroyed 8R-AWN 6050 | -9/Exiles | Found Prototype Ballistic Gun 6050 | -9/Exiles | Identified 8R-AWN's Boregun 6329 | -9/Exiles | Build established: Scavenger-Mutant 6447 | -9/Exiles | Destroyed EX-DEC 6581 | -9/Exiles | Destroyed EX-BIN 6853 | -9/Exiles | Destroyed EX-HEX 6858 | -9/Exiles | Found Deploy-a-Sentry 6896 | -9/Exiles | Found Prototype Device 6905 | -9/Exiles | Identified System Purifier 6920 | -9/Exiles | Found Prototype Processor 6922 | -9/Exiles | Identified Exp. Core Analyzer 7771 | -9/Exiles | Stole four prototypes: Firepult, YOLO Cannon, AWS/Gauss, Deploy-a-Sentry 7771 | -9/Exiles | Entered Mines 7780 | -8/Mines | Core integrity fell below 20% 7856 | -8/Mines | 99-TNT came to Exiles' defense 7882 | -8/Mines | DAS Turret deployed 7893 | -8/Mines | Allies destroyed 99-TNT 7921 | -8/Mines | Lost 5 parts (1p4n) 8167 | -8/Mines | Build established: Mutant 8200 | -8/Mines | Found a Scrap Suit stashed away for nefarious purposes 8386 | -8/Mines | Destroyed by G-47 Trooper with Particle Gun Last Messages --------------- 08300_ U-05 Engineer builds a Wall. 08308_ U-05 Engineer lays Concrete. 08312_ U-05 Engineer builds a Wall. 08313_ U-05 Engineer lays Concrete. 08319_ U-05 Engineer builds a Wall. 08321_ U-05 Engineer lays Concrete. 08326_ U-05 Engineer builds a Wall. 08326_ U-05 Engineer lays Concrete. 08329_ U-05 Engineer builds a Wall. 08330_ U-05 Engineer lays Concrete. 08334_ U-05 Engineer builds a Wall. 08338_ U-05 Engineer lays Concrete. 08352_ U-05 Engineer builds a Wall. 08357_ U-05 Engineer lays Concrete. 08361_ U-05 Engineer builds a Wall. 08372_ U-05 Engineer lays Concrete. 08373_ U-05 Engineer builds a Wall. 08382_ U-05 Engineer lays Concrete. 08385_ Critical hit (Burn: +37). 08385_ U-05 Engineer builds a Wall. Map ----- +----------------------------------------------------+ | ???????????????????????????????# #????????????? | | ???????????????????????????????# ##???????????? | | ???????????????????????????????# #???????????? | | ???????????????????????????????# #???????????? | | ???????????????????????????????# ##??????????? | | ???????????????????????????????## ##?????????? | | ????????????????????????????????### #?????????? | | ??????????????????????????????????## ##????????? | | ???????????????????????????????????# ##???????? | | ???????????????????????????????????## #???????? | | ?????????????????????????????????#### #???????? | | ?????????????????????????????????# ##???????? | | ?????????????????????????????????# ## #????????? | | ?????????????????????????????????# ## #????????? | | ?????????????????????????????????# ## ##???????? | | ?????????????????????????????????# ## ! ##??????? | | ????????????????????????###??????# ### #??????? | | ???????????????????????## #??????# #?## ##?????? | | ???????????????????????# ######?# #??## #?????? | | ???????????????????????# ## ### ###### #?????? | | ???????????????????????# #?????? | | ???????????????????????## ######### #?????? | | ????????????????????????# ##???????# #?????? | | ????????????????????????# #####????????# #?????? | | ?????????? ####### #????????????# #?????? | | ?????????? gg @ #????????????# #?????? | | ????????????# g #????????????# #?????? | | ?????????????# # ########????????????# #?????? | | ????????????????????????????????????????# #?????? | | ????????????????????????????????????????# #?????? | | ????????????????????????????????????????# #?????? | | ????????????????????????????????????????# #?????? | | ????????????????????????????????????????# #?????? | | ????????????????????????????????????????# #?????? | | ????????????????????????????????????????# #?????? | | ????????????????????????????????????????# [#?????? | | ????????????????????????????????????????# #?????? | | ????????????????????????????????????????# ####### | | ????????????????????????????????????????# | | ????????????????????????????????????????########## | | ?????????????????????????????????????????????????? | | ?????????????????????????????????????????????????? | | ?????????????????????????????????????????????????? | | ?????????????????????????????????????????????????? | | ?????????????????????????????????????????????????? | | ?????????????????????????????????????????????????? | | ?????????????????????????????????????????????????? | | ?????????????????????????????????????????????????? | | ?????????????????????????????????????????????????? | | | +----------------------------------------------------+ Best States ------------- Heat Dissipation 54 Energy Generation 19 Energy Capacity 310 Matter Stores 300 Matter Capacity 300 Sight Range 16 Terrain Scan Density 10 Armor Coverage 300 Evasion (%) 55 Recoil Reduction 3 Item Schematics ----------------- None Robot Schematics ------------------ M-13 Machinist | -10/Materials | Hacked Fabricated ------------ Nothing Repaired ---------- Lgt. Armor Plating | 37% | -9/Materials Lgt. EM Pulse Cannon | 28% | -9/Materials Studied --------- Autogun | -9/Materials | Hacked Lgt. Treads | -9/Materials | Hacked Alien Tech Used ----------------- None Achievements -------------- Who Guards The Bodyguard? Challenges ------------ None Game ------ Seed LatentSubdwellerDoomcannon Manual? 0 Play Time 00:44:43 Cumulative 403.3 hours Start 2025.12.19 @ 15:55:43 End 2025.12.19 @ 16:47:19 Sessions 1 Manual Loads 0 Difficulty Rogue Special Mode None Game No. 268 Rogue 268 Adventurer 0 Explorer 0 Win Type - Total 26 Types 10/0/8/1/1/0/3/1/1/1 Lore% 84 Gallery% 80 Achievement% 70 Wizard Run 0 Options --------- Layout 1 ASCII 0 Keyboard 0 Movement Mouse Keybinds 0 Fullscreen 2 Font 24/Smallcaps Map View 50x35 Zoom Use 0% Tactical HUD 1 Map Filters NONE Filters NONE Steam 1 RUN: 1cdaffec-c042-42d4-9e7d-a7db4aef8ccd